bitfinex-derivatives/quotes_ETHF0:USTF0_20251225
["timestamp","ask_amount","ask_price","bid_price","bid_amount"]
[1766648480525,3.40610352,2940.9,2940.1,9.317]
[1766648481125,4.28828045,2940.9,2940.1,9.317]
[1766648482223,3.40610352,2940.9,2940.1,9.317]
[1766648482523,4.28345276,2940.9,2940.1,9.317]
[1766648484519,3.40610352,2940.9,2940.1,9.317]
[1766648484823,4.30096266,2940.9,2940.1,10.04715609]
[1766648485516,3.40610352,2940.9,2940.1,9.317]
[1766648485824,4.29030121,2940.9,2940.1,10.06966916]
[1766648486729,4.29942053,2940.9,2940.1,10.04416356]
[1766648487916,4.30796674,2940.9,2940.1,10.04891856]
[1766648488224,3.40610352,2940.9,2940.1,9.317]
[1766648488524,4.30796674,2940.9,2940.1,10.04891856]
[1766648488822,3.40610352,2940.9,2940.1,9.317]
[1766648489026,4.2944356,2940.9,2940.1,10.0661426]
[1766648491628,4.30083998,2940.9,2940.1,10.06574767]
[1766648492028,3.40610352,2940.9,2940.1,9.317]
[1766648492228,4.30083998,2940.9,2940.1,10.06574767]
[1766648494238,3.40610352,2940.9,2940.1,9.317]
[1766648494529,4.29938595,2940.9,2940.1,10.06100738]
[1766648495531,3.40610352,2940.9,2940.1,9.317]
[1766648495728,4.30789459,2940.9,2940.1,10.06762349]
[1766648496127,3.40610352,2940.9,2940.1,9.317]
[1766648496337,4.30789459,2940.9,2940.1,10.06762349]
[1766648497032,4.29087809,2940.9,2940.1,10.064306]
[1766648497736,3.40610352,2940.9,2940.1,9.317]
[1766648498232,4.29087809,2940.9,2940.1,10.064306]
[1766648499532,3.40610352,2940.9,2940.1,9.317]
[1766648499832,4.29665014,2940.9,2940.1,10.06803496]
[1766648500329,3.40610352,2940.9,2940.1,9.317]
[1766648500531,4.29665014,2940.9,2940.1,10.06803496]
[1766648500835,4.29718146,2940.9,2940.1,10.06829597]
[1766648503533,4.29718146,2940.9,2940.1,9.317]
[1766648503832,4.27901758,2940.9,2940.1,10.06764549]
[1766648504733,0.87801758,2940.9,2940.1,10.06764549]
[1766648504930,0.9015445,2940.9,2940.1,10.07229581]
[1766648505231,3.402,2941.0,2940.1,9.317]
[1766648506133,0.00510352,2940.8,2940.3,0.00510352]
[1766648506335,0.00510352,2940.8,2940.4,3.402]
[1766648514441,3.52e-06,2940.8,2940.4,3.402]
[1766648516747,3.402,2941.0,2940.4,3.402]
[1766648517749,3.40710352,2941.0,2940.4,3.402]
[1766648519443,0.00510352,2941.0,2940.4,3.402]
[1766648520540,3.52e-06,2941.0,2940.4,3.402]
[1766648541770,3.52e-06,2941.0,2940.5,3.401]
[1766648549068,3.52e-06,2941.0,2940.3,0.00510352]
[1766648549373,3.52e-06,2941.0,2940.4,3.401]
[1766648621151,3.52e-06,2941.0,2940.3,0.00510352]
[1766648621339,3.52e-06,2941.0,2940.4,9.315]
[1766648625148,3.52e-06,2941.0,2940.3,0.00510352]
[1766648625342,3.52e-06,2941.0,2940.4,9.315]
[1766648630151,3.52e-06,2941.0,2940.5,3.401]
[1766648637458,3.52e-06,2941.0,2940.3,0.00510352]
[1766648637656,3.52e-06,2941.0,2940.4,9.315]
[1766648641060,3.52e-06,2941.0,2939.8,13.30796996]
[1766648641061,3.401,2940.9,2939.5,0.75407198]
[1766648641262,1.01337737,2940.8,2939.6,9.315]
[1766648641454,4.28034572,2940.9,2939.6,9.315]
[1766648641755,1.01272696,2940.8,2939.6,9.315]
[1766648641952,4.28034572,2940.9,2939.6,9.315]
[1766648642256,4.28034572,2940.9,2940.0,0.00510352]
[1766648664379,1.01161586,2940.8,2940.0,0.00510352]
[1766648664581,5.953,2940.7,2940.0,0.00510352]
[1766648664877,3.402,2940.6,2940.0,0.00510352]
[1766648691410,3.402,2940.5,2940.0,0.00510352]
[1766648695007,4.30178804,2940.5,2939.7,3.402]
[1766648695312,3.402,2940.5,2939.7,3.402]
[1766648696113,3.402,2940.5,2939.8,0.0051]
[1766648696313,4.30192006,2940.5,2939.8,0.0051]
[1766648696514,4.27386652,2940.5,2939.8,0.0051]
[1766648700014,3.402,2940.4,2939.8,0.0051]
[1766648722428,3.402,2940.4,2939.8,3.4071]
[1766648724233,3.402,2940.4,2939.8,4.14506747]
[1766648748963,9.352,2940.7,2939.8,4.14506747]
[1766648760368,0.87934572,2940.9,2939.8,4.14506747]
[1766648760575,9.352,2940.8,2939.8,4.14506747]
[1766648762969,10.23906819,2940.8,2939.8,4.14506747]
[1766648765381,9.352,2940.8,2939.8,4.14506747]
[1766648765671,10.23693586,2940.8,2939.8,4.14506747]
[1766648774075,3.52e-06,2941.0,2939.8,4.14506747]
[1766648775380,3.52e-06,2941.0,2939.8,4.31525747]
[1766648777578,3.52e-06,2941.0,2939.9,3.91583897]
[1766648779081,3.52e-06,2941.0,2939.9,4.08602897]
[1766648791090,3.52e-06,2941.0,2940.0,0.17018]
[1766648791290,3.52e-06,2941.0,2940.1,3.401]
[1766648791492,3.52e-06,2941.0,2940.2,5.912]
[1766648791788,3.52e-06,2941.0,2940.2,6.66251799]
[1766648795394,3.52e-06,2941.0,2940.3,8.504]
[1766648795587,3.52e-06,2941.0,2940.4,3.401]
[1766648795790,7.10497274,2941.3,2940.4,3.401]
[1766648796896,0.00510352,2941.1,2940.4,3.401]
[1766648808508,0.00510352,2941.1,2940.5,5.911]
[1766648808711,0.00510352,2941.1,2940.6,5.7518]
[1766648809010,0.00510352,2941.1,2940.7,5.3936]
[1766648809209,0.00510352,2941.1,2940.7,5.0752]
[1766648814611,7.10497274,2941.3,2940.7,5.0752]
[1766648815618,7.11007626,2941.3,2940.7,5.0752]
[1766648819121,7.11007626,2941.3,2940.8,3.401]
[1766648868888,7.11007626,2941.3,2940.8,3.1224]
[1766648869178,7.11007626,2941.3,2940.8,2.5453]
[1766648869379,7.11007626,2941.3,2940.8,2.3861]
[1766648882601,7.11007626,2941.3,2940.8,2.2269]
[1766648895423,0.00803182,2941.3,2940.8,2.2269]
[1766648913130,3.182e-05,2941.3,2940.8,2.2269]
[1766648913329,10.2450061,2941.4,2940.8,2.2269]
[1766648914240,10.2533709,2941.4,2940.8,2.2269]
[1766648914942,4.2923709,2941.4,2940.8,2.2269]
[1766648916138,0.8913709,2941.4,2940.8,2.2269]
[1766648940760,0.0083648,2941.4,2940.8,2.2269]
[1766648941451,0.0083648,2941.4,2940.8,2.95868474]
[1766648947769,0.0083648,2941.4,2940.8,2.2269]
[1766648949366,0.0083648,2941.4,2940.7,5.8217403]
[1766648949558,0.0083648,2941.4,2940.8,9.311]
[1766648953571,0.0083648,2941.4,2940.4,0.90194474]
[1766648953781,0.0083648,2941.4,2940.5,5.86]
[1766648955072,0.0083648,2941.4,2940.4,0.90194474]
[1766648955266,0.0083648,2941.4,2940.6,5.91]
[1766648958180,0.0083648,2941.4,2940.4,0.90194474]
[1766648958481,0.0083648,2941.4,2940.6,5.91]
[1766648963486,3.401,2941.3,2940.4,0.73178474]
[1766648963681,3.401,2941.3,2940.5,9.311]
[1766648971095,3.401,2941.3,2940.6,9.311]
[1766648993514,3.401,2941.3,2940.4,0.73178474]
[1766648993813,3.401,2941.3,2940.5,9.311]
[1766648995010,3.401,2941.3,2940.5,3.401]
[1766648995214,12.80341537,2941.3,2940.1,4.28267145]
[1766648995412,1.00913115,2941.2,2939.8,9.3161]
[1766648995616,12.80341537,2941.3,2939.8,9.3161]
[1766648995617,6.98313115,2941.1,2939.8,9.3161]
[1766648995819,3.401,2941.0,2939.8,9.3161]
[1766648996013,4.30065534,2941.0,2939.8,9.3161]
[1766648997110,4.29806144,2941.0,2939.8,9.3161]
[1766648997816,3.401,2941.0,2939.8,9.3161]
[1766648998213,4.29806144,2941.0,2939.8,9.3161]
[1766648998816,3.401,2941.0,2939.8,9.3161]
[1766648999420,4.28644939,2941.0,2939.8,9.3161]
[1766649000015,4.30326332,2941.0,2939.8,9.3161]
[1766649000322,4.28520443,2941.0,2939.8,9.3161]
[1766649000811,3.401,2941.0,2939.8,9.3161]
[1766649001011,4.28520443,2941.0,2939.8,9.3161]
[1766649009234,0.88420443,2941.0,2939.8,9.3161]
[1766649009530,3.402,2940.9,2939.8,9.3161]
[1766649010332,3.3025,2940.9,2939.8,9.3161]
[1766649013634,0.88420443,2941.0,2939.8,9.3161]
[1766649013833,3.402,2940.9,2939.8,9.3161]
[1766649023046,3.402,2940.9,2939.8,0.0051]
[1766649023344,3.402,2940.9,2939.9,9.312]
[1766649057174,4.30626041,2940.9,2939.9,9.312]
[1766649058076,3.402,2940.9,2939.9,9.312]
[1766649058373,4.30661321,2940.9,2939.9,9.312]
[1766649058776,3.402,2940.9,2939.9,9.312]
[1766649058976,4.30661321,2940.9,2939.9,9.312]
[1766649060372,4.27842671,2940.9,2939.9,9.312]
[1766649060677,3.402,2940.9,2939.9,9.312]
[1766649060877,4.27842671,2940.9,2939.9,9.312]
[1766649061084,3.402,2940.9,2939.9,9.312]
[1766649061582,4.27842671,2940.9,2939.9,9.312]
[1766649062086,3.402,2940.9,2939.9,9.312]
[1766649062677,4.27947485,2940.9,2939.9,9.312]
[1766649062982,3.402,2940.9,2939.9,9.312]
[1766649063184,4.29669929,2940.9,2939.9,9.312]
[1766649064086,4.27656762,2940.9,2939.9,9.312]
[1766649065185,3.402,2940.9,2939.9,9.312]
[1766649065383,4.27497574,2940.9,2939.9,9.312]
[1766649065689,3.402,2940.9,2939.9,9.312]
[1766649066376,4.27495714,2940.9,2939.9,9.312]
[1766649067086,3.402,2940.9,2939.9,9.312]
[1766649067381,0.0083648,2941.4,2939.9,9.312]
[1766649067586,4.41847558,2941.3,2939.9,9.312]
[1766649067891,1.01647558,2941.2,2939.9,9.312]
[1766649068079,4.28265347,2941.3,2939.9,9.312]
[1766649068285,1.0164714,2941.2,2939.9,9.312]
[1766649068488,4.28265347,2941.3,2939.9,9.312]
[1766649068677,1.01639772,2941.2,2939.9,9.312]
[1766649068881,4.28265347,2941.3,2939.9,9.312]
[1766649069085,1.01639611,2941.2,2939.9,9.312]
[1766649069285,4.28265347,2941.3,2939.9,9.312]
[1766649069484,1.01632926,2941.2,2939.9,9.312]
[1766649069685,4.28265347,2941.3,2939.9,9.312]
[1766649069981,1.0163295,2941.2,2939.9,9.312]
[1766649070183,4.28265347,2941.3,2939.9,9.312]
[1766649070379,1.0162746,2941.2,2939.9,9.312]
[1766649070580,4.28265347,2941.3,2939.9,9.312]
[1766649070776,1.01627265,2941.2,2939.9,9.312]
[1766649070979,4.28265347,2941.3,2939.9,9.312]
[1766649071173,1.01627266,2941.2,2939.9,9.312]
[1766649071374,4.28265347,2941.3,2939.9,9.312]
[1766649071575,1.01622634,2941.2,2939.9,9.312]
[1766649071877,4.28265347,2941.3,2939.9,9.312]
[1766649072079,1.0162387,2941.2,2939.9,9.312]
[1766649072283,4.28265347,2941.3,2940.0,3.82543201]
[1766649072486,4.28265347,2941.3,2940.0,3.99561201]
[1766649075982,0.88065347,2941.3,2940.1,0.17018]
[1766649076182,0.88065347,2941.3,2940.2,3.401]
[1766649076481,0.88065347,2941.3,2940.2,7.04198435]
[1766649076687,0.0083648,2941.4,2940.2,7.04198435]
[1766649079287,0.89912688,2942.2,2940.2,7.04198435]
[1766649079480,1.22145534,2942.9,2940.3,34.017]
[1766649079685,0.74898874,2942.9,2940.4,12.771]
[1766649079992,0.74898874,2942.9,2941.2,0.17011]
[1766649080192,4.12692035,2943.0,2941.3,13.98611]
[1766649080387,0.72956244,2943.0,2941.3,18.54604698]
[1766649080581,3.52e-06,2942.4,2941.9,0.00510352]
[1766649080780,0.72956244,2943.0,2942.0,9.31]
[1766649081088,0.00364209,2943.0,2942.0,9.31]
[1766649081292,0.72956244,2943.0,2942.0,9.31]
[1766649081584,0.00364209,2943.0,2942.1,5.909]
[1766649081791,0.00510352,2942.8,2941.9,0.00510352]
[1766649081990,0.00510352,2942.8,2942.0,3.401]
[1766649082591,0.00510352,2942.8,2942.0,3.3413]
[1766649083289,0.00510352,2942.8,2942.0,3.2816]
[1766649083493,0.2208,2942.7,2942.0,3.2816]
[1766649083790,3.401,2942.6,2941.6,3.401]
[1766649084688,3.401,2942.6,2941.8,0.00510352]
[1766649086198,3.401,2942.6,2941.3,4.7096771]
[1766649086401,3.401,2942.6,2941.4,3.4]
[1766649087401,3.401,2942.6,2941.7,3.52e-06]
[1766649087791,3.401,2942.6,2941.1,3.4]
[1766649088697,3.401,2942.6,2941.6,0.00510352]
[1766649090599,40.8,2942.5,2941.6,0.00510352]
[1766649090901,5.971,2942.4,2941.1,3.40432171]
[1766649091104,3.4,2942.3,2941.1,3.40432171]
[1766649091304,4.13433508,2942.3,2941.1,3.40432171]
[1766649091804,4.13433508,2942.3,2941.4,0.00510352]
[1766649101017,0.2208,2942.2,2941.4,0.00510352]
[1766649101203,5.991,2942.1,2941.4,0.00510352]
[1766649101404,3.401,2942.0,2941.4,0.00510352]
[1766649119243,0.97756969,2941.9,2941.4,0.00510352]
[1766649119440,3.401,2942.0,2941.4,0.00510352]
[1766649119639,0.2209,2941.8,2941.4,0.00510352]
[1766649119840,9.392,2941.7,2941.4,0.00510352]
[1766649127849,0.2209,2941.8,2941.4,0.00510352]
[1766649128143,3.401,2941.7,2941.4,0.00510352]
[1766649131747,4.15566024,2941.7,2941.4,0.00510352]
[1766649131941,4.15566024,2941.7,2941.1,3.40432171]
[1766649132748,3.401,2941.7,2941.1,3.40432171]
[1766649140757,3.3015,2941.7,2941.1,3.40432171]
[1766649140953,0.73433508,2942.3,2941.1,3.40432171]
[1766649141256,9.39,2942.2,2941.1,3.40432171]
[1766649142953,0.2208,2942.1,2941.1,3.40432171]
[1766649146662,0.2208,2942.1,2941.1,0.00432171]
[1766649146862,0.2208,2942.1,2941.1,3.40432171]
[1766649157070,9.39,2942.2,2941.1,3.40432171]
[1766649157271,0.99085839,2942.1,2941.1,3.40432171]
[1766649157471,9.39,2942.2,2941.1,3.40432171]
[1766649157670,0.99090335,2942.1,2941.1,3.40432171]
[1766649157871,9.39,2942.2,2941.1,3.40432171]
[1766649158072,0.99090335,2942.1,2941.1,3.40432171]
[1766649158272,9.39,2942.2,2941.1,3.40432171]
[1766649158465,0.99092286,2942.1,2941.1,3.40432171]
[1766649158665,9.39,2942.2,2941.1,3.40432171]
[1766649158969,0.99092289,2942.1,2941.1,3.40432171]
[1766649159173,9.39,2942.2,2941.1,3.40432171]
[1766649159376,0.9909326,2942.1,2941.1,3.40432171]
[1766649159671,9.39,2942.2,2941.1,3.40432171]
[1766649159873,0.99093267,2942.1,2941.1,3.40432171]
[1766649160073,0.2209,2942.0,2941.1,3.40432171]
[1766649160274,3.4,2941.9,2941.1,3.40432171]
[1766649165170,3.6209,2942.0,2941.1,3.40432171]
[1766649177189,3.4,2942.0,2941.1,3.40432171]
[1766649180701,0.2209,2941.9,2941.1,3.40432171]
[1766649181298,0.2209,2941.9,2941.1,0.00432171]
[1766649181498,0.2209,2941.9,2941.2,3.4]
[1766649207720,3.4,2942.0,2941.2,3.4]
[1766649210424,0.2209,2941.9,2941.2,3.4]
[1766649226135,0.2209,2941.9,2941.1,0.00432171]
[1766649226337,0.2209,2941.9,2941.2,3.4]
[1766649228440,4.13834116,2942.0,2941.2,3.4]
[1766649230952,0.2209,2941.9,2941.2,3.4]
[1766649241857,4.13834116,2942.0,2941.2,3.4]
[1766649245659,0.2209,2941.9,2941.2,3.4]
[1766649247962,3.3005,2941.8,2941.2,3.4]
[1766649248857,3.201,2941.8,2941.2,3.4]
[1766649249056,2.8428,2941.8,2941.2,3.4]
[1766649249256,2.7433,2941.8,2941.2,3.4]
[1766649249561,2.6438,2941.8,2941.2,3.4]
[1766649249762,2.5443,2941.8,2941.2,3.4]
[1766649251662,2.4448,2941.8,2941.2,3.4]
[1766649271689,0.2209,2941.7,2941.2,3.4]
[1766649295314,2.4448,2941.8,2941.2,3.4]
[1766649318624,0.73834116,2942.0,2941.2,3.4]
[1766649322425,3.4,2942.1,2941.2,3.4]
[1766649322625,5.49017496,2942.3,2941.2,3.4]
[1766649322929,4.75053156,2942.3,2941.2,3.4]
[1766649323119,5.49006288,2942.3,2941.2,3.57011]
[1766649324228,5.23136288,2942.3,2941.2,3.57011]
[1766649324431,4.91296288,2942.3,2941.3,0.17011]
[1766649324631,0.00510352,2942.8,2941.4,14.407]
[1766649324823,0.00510352,2942.8,2941.5,4.28343292]
[1766649325126,0.00510352,2942.8,2941.5,8.14870802]
[1766649325528,0.00510352,2942.8,2941.5,8.31879802]
[1766649327137,0.00510352,2942.8,2941.6,0.17009]
[1766649327630,0.00510352,2942.8,2941.7,3.57896277]
[1766649327829,0.00510352,2942.8,2941.8,3.4]
[1766649337640,0.00510352,2942.8,2941.6,0.17009]
[1766649337943,3.40410352,2942.8,2941.6,0.17009]
[1766649338129,3.40410352,2942.8,2941.7,3.73]
[1766649341541,4.14492878,2942.8,2941.7,3.73]
[1766649342438,3.40410352,2942.8,2941.7,3.73]
[1766649356053,0.03258269,2942.3,2941.7,3.73]
[1766649356351,3.40410352,2942.8,2941.7,3.73]
[1766649360357,0.00510352,2942.8,2941.7,3.73]
[1766649360551,0.00510352,2942.8,2941.8,3.90637593]
[1766649367864,0.00510352,2942.8,2941.8,4.07645593]
[1766649368059,3.40264209,2943.0,2941.9,0.17007]
[1766649368360,0.00364209,2943.0,2942.0,6.94196844]
[1766649368964,0.00510352,2942.8,2942.2,0.00510352]
[1766649369163,0.00364209,2943.0,2942.3,10.19831661]
[1766649370263,0.00510352,2942.9,2942.3,10.19831661]
[1766649370967,0.00510352,2942.9,2942.3,0.89531661]
[1766649371169,0.00510352,2942.9,2942.4,3.399]
[1766649375871,4.73721004,2943.6,2942.4,3.399]
[1766649376171,3.399,2943.5,2942.4,3.399]
[1766649377166,0.00510352,2943.2,2942.4,3.399]
[1766649385071,3.40233617,2943.5,2942.4,3.399]
[1766649386179,0.00510352,2943.2,2942.4,3.399]
[1766649391271,0.00510352,2943.2,2942.4,5.902]
[1766649391476,0.00510352,2943.2,2942.3,0.89531661]
[1766649391675,3.399,2943.1,2942.4,3.2995]
[1766649391874,4.431,2943.0,2941.7,0.89398688]
[1766649392076,4.431,2943.0,2941.8,10.19513842]
[1766649392982,4.431,2943.0,2942.1,0.00510352]
[1766649400584,3.399,2942.9,2942.1,3.40410352]
[1766649402099,3.399,2942.9,2942.2,3.399]
[1766649402298,3.399,2942.9,2942.1,3.40410352]
[1766649403300,3.399,2942.9,2942.1,2.98620352]
[1766649403491,3.399,2942.9,2941.9,3.399]
[1766649404302,3.399,2942.9,2942.1,0.00510352]
[1766649411204,3.399,2942.9,2942.1,3.52e-06]
[1766649422618,0.98884017,2942.8,2942.1,3.52e-06]
[1766649422812,6.96184017,2942.7,2942.1,3.52e-06]
[1766649423014,4.38784017,2942.6,2942.1,3.52e-06]
[1766649423214,3.399,2942.6,2942.1,3.52e-06]
[1766649426220,5.986,2942.5,2942.1,3.52e-06]
[1766649426425,9.386,2942.5,2942.1,3.52e-06]
[1766649440927,9.386,2942.5,2941.6,6.96087684]
[1766649441721,9.386,2942.5,2941.8,0.00510352]
[1766649442826,9.386,2942.5,2941.8,3.52e-06]
[1766649466945,9.404,2942.4,2941.8,3.52e-06]
[1766649476462,3.4,2942.3,2941.8,3.52e-06]
[1766649511105,3.4,2942.3,2941.8,3.40000352]
[1766649511700,3.4,2942.3,2941.8,3.30050352]
[1766649512001,3.4,2942.3,2941.8,3.20100352]
[1766649512604,3.4,2942.3,2941.8,3.00200352]
[1766649513702,4.23289025,2942.3,2941.4,0.9857255]
[1766649513900,4.23289025,2942.3,2941.4,3.1413]
[1766649514098,4.23289025,2942.3,2941.4,2.7234]
[1766649515096,3.4,2942.3,2941.4,2.7234]
[1766649515504,4.21107974,2942.3,2941.4,2.7234]
[1766649516907,3.4,2942.3,2941.4,2.7234]
[1766649518205,4.22041137,2942.3,2941.4,2.7234]
[1766649518406,3.4,2942.3,2941.4,2.7234]
[1766649518606,4.22515833,2942.3,2941.4,2.7234]
[1766649519209,4.21326536,2942.3,2941.4,2.7234]
[1766649519509,3.4,2942.3,2941.4,2.7234]
[1766649519808,9.401,2942.2,2941.4,2.7234]
[1766649549832,6.001,2942.2,2941.4,2.7234]
[1766649553851,4.20137053,2942.4,2941.4,2.7234]
[1766649554143,3.4,2942.4,2941.4,2.7234]
[1766649554447,4.1962165,2942.4,2941.4,2.7234]
[1766649555446,3.4,2942.4,2941.4,2.7234]
[1766649557052,4.20504044,2942.4,2941.4,2.7234]
[1766649557550,3.4,2942.4,2941.4,2.7234]
[1766649557849,4.13651775,2942.4,2941.4,2.7234]
[1766649559450,3.4,2942.4,2941.4,2.7234]
[1766649560157,4.15172669,2942.4,2941.4,2.7234]
[1766649560652,4.14090023,2942.4,2941.4,2.7234]
[1766649561752,3.4,2942.4,2941.4,2.7234]
[1766649562254,13.86640121,2942.9,2941.4,2.7234]
[1766649562255,5.36540121,2942.9,2941.4,2.7234]
[1766649562457,10.39309076,2942.8,2941.4,2.7234]
[1766649562754,9.398,2942.8,2941.4,2.7234]
[1766649563754,10.15175358,2942.8,2941.4,2.7234]
[1766649563955,0.99499937,2942.7,2941.4,2.7234]
[1766649564155,10.15175358,2942.8,2941.4,2.7234]
[1766649564453,0.99493591,2942.7,2941.4,2.7234]
[1766649564645,10.14727263,2942.8,2941.4,2.7234]
[1766649564846,0.99493591,2942.7,2941.4,2.7234]
[1766649565048,0.00510352,2943.2,2941.4,3.61867186]
[1766649565248,8.14393591,2943.1,2941.4,3.61867186]
[1766649565552,0.99493591,2943.0,2941.4,3.61867186]
[1766649565755,0.99493591,2942.9,2941.4,3.61867186]
[1766649565954,4.39493591,2942.8,2941.5,5.903]
[1766649566153,5.998,2942.7,2941.5,5.903]
[1766649567961,5.998,2942.7,2941.6,9.303]
[1766649577260,5.998,2942.7,2941.4,0.89527186]
[1766649577464,0.99321675,2942.6,2941.5,3.4]
[1766649577764,3.4,2942.5,2941.5,3.4]
[1766649586078,0.73276481,2942.9,2941.5,3.4]
[1766649586266,10.05999479,2942.8,2941.5,3.4]
[1766649586570,0.99299479,2942.7,2941.5,3.4]
[1766649586872,9.067,2942.8,2941.5,3.4]
[1766649587063,0.99294319,2942.7,2941.5,3.4]
[1766649587260,9.067,2942.8,2941.5,3.4]
[1766649587473,0.99294276,2942.7,2941.5,3.4]
[1766649587672,9.067,2942.8,2941.5,3.4]
[1766649587868,0.99294274,2942.7,2941.5,3.4]
[1766649588073,9.067,2942.8,2941.5,3.4]
[1766649588277,0.99294275,2942.7,2941.5,3.4]
[1766649588469,9.067,2942.8,2941.5,3.4]
[1766649588671,0.9929447,2942.7,2941.5,3.4]
[1766649588970,9.067,2942.8,2941.5,3.4]
[1766649589268,0.9929447,2942.7,2941.5,3.4]
[1766649589573,9.067,2942.8,2941.5,3.4]
[1766649589778,0.99294645,2942.7,2941.5,3.4]
[1766649589970,9.067,2942.8,2941.5,3.4]
[1766649590272,0.99294611,2942.7,2941.5,3.4]
[1766649590473,9.067,2942.8,2941.5,3.4]
[1766649590675,0.992948,2942.7,2941.5,3.4]
[1766649590869,9.067,2942.8,2941.5,3.4]
[1766649591069,0.99294969,2942.7,2941.5,3.4]
[1766649591277,9.067,2942.8,2941.5,3.4]
[1766649591573,0.99294977,2942.7,2941.5,3.4]
[1766649591772,9.067,2942.8,2941.5,3.4]
[1766649591976,0.99294977,2942.7,2941.5,3.4]
[1766649592172,9.067,2942.8,2941.5,3.4]
[1766649592475,0.9929761,2942.7,2941.5,3.4]
[1766649592668,9.067,2942.8,2941.5,3.4]
[1766649592867,0.9929761,2942.7,2941.5,3.4]
[1766649593181,9.067,2942.8,2941.5,3.4]
[1766649593475,0.99300407,2942.7,2941.5,3.4]
[1766649593773,0.99301744,2942.6,2941.5,3.4]
[1766649593968,3.4,2942.5,2941.5,3.4]
[1766649603280,3.4,2942.5,2941.3,0.98648496]
[1766649603576,3.4,2942.5,2941.4,3.4]
[1766649604476,3.4,2942.5,2941.3,0.98648496]
[1766649604786,3.4,2942.5,2941.4,3.4]
[1766649607590,0.17002,2942.9,2941.4,3.4]
[1766649607792,3.49,2942.8,2941.4,3.4]
[1766649623805,3.49,2942.8,2941.4,4.28028603]
[1766649624012,4.23448953,2942.8,2941.4,4.28028603]
[1766649630712,9.411,2942.7,2941.4,4.28028603]
[1766649634914,0.74448953,2942.8,2941.4,4.28028603]
[1766649635119,9.411,2942.7,2941.4,4.28028603]
[1766649636614,6.011,2942.6,2941.4,4.28028603]
[1766649636815,3.4,2942.5,2941.4,4.28028603]
[1766649639527,6.011,2942.6,2941.4,4.28028603]
[1766649639528,3.4,2942.6,2941.4,4.28028603]
[1766649641020,0.74448953,2942.8,2941.4,4.28028603]
[1766649642521,3.4,2942.7,2941.4,4.28028603]
[1766649642723,3.4,2942.7,2941.4,4.45038603]
[1766649656946,3.4,2942.7,2941.4,12.95038603]
[1766649680147,3.4,2942.7,2941.4,12.78028603]
[1766649680345,3.399,2943.1,2941.6,0.17009]
[1766649680545,3.399,2943.1,2941.7,3.399]
[1766649680848,3.399,2943.1,2941.7,10.38305382]
[1766649682251,3.399,2943.1,2941.8,5.902]
[1766649683548,3.399,2943.1,2941.8,6.77919846]
[1766649688060,3.399,2943.1,2941.8,6.94926846]
[1766649688559,5.49566807,2943.2,2941.8,6.94926846]
[1766649696068,5.49566807,2943.2,2942.1,0.17006]
[1766649696272,5.49566807,2943.2,2942.2,9.3]
[1766649706187,5.49566807,2943.2,2942.2,9.47005]
[1766649706895,5.49566807,2943.2,2942.2,17.96805]
[1766649716197,5.49566807,2943.2,2942.2,0.17005]
[1766649716390,5.49566807,2943.2,2942.3,5.38]
[1766649721193,4.76536057,2943.2,2941.8,0.87719846]
[1766649721389,8.90680676,2943.2,2941.9,8.378]
[1766649721590,8.90680676,2943.2,2941.7,7.88651413]
[1766649721896,8.90680676,2943.2,2941.7,6.98405382]
[1766649722295,8.497,2943.1,2941.8,2.7461]
[1766649722491,8.497,2943.1,2941.8,2.5272]
[1766649722693,49.297,2943.1,2941.6,1.7123]
[1766649722900,49.297,2943.1,2941.7,3.2398]
[1766649723198,49.297,2943.1,2941.7,3.1801]
[1766649731507,6.062,2943.0,2941.7,3.1801]
[1766649731707,3.399,2942.9,2941.7,3.1801]
[1766649732109,40.8,2942.8,2941.7,3.1801]
[1766649732812,6.064,2942.7,2941.7,3.1801]
[1766649733011,3.399,2942.6,2941.7,3.1801]
[1766649733312,4.14647103,2942.6,2941.7,3.1801]
[1766649733815,3.399,2942.6,2941.7,3.1801]
[1766649734816,4.14285932,2942.6,2941.7,3.1801]
[1766649735315,3.399,2942.6,2941.7,3.1801]
[1766649736014,4.1486354,2942.6,2941.7,3.1801]
[1766649737009,3.399,2942.6,2941.7,3.1801]
[1766649737215,4.16090731,2942.6,2941.7,3.1801]
[1766649738312,4.21013786,2942.6,2941.7,3.1801]
[1766649740610,3.399,2942.6,2941.7,3.1801]
[1766649740815,4.19450404,2942.6,2941.7,3.1801]
[1766649741209,3.399,2942.6,2941.7,3.1801]
[1766649742120,4.19450404,2942.6,2941.7,3.1801]
[1766649755124,3.399,2942.6,2941.7,3.1801]
[1766649769131,3.399,2942.6,2941.2,0.17011]
[1766649769319,4.25313935,2942.6,2941.3,4.45687353]
[1766649769522,4.25325589,2942.6,2941.3,4.43652224]
[1766649770732,4.26132862,2942.6,2941.3,4.43123065]
[1766649770923,3.399,2942.6,2941.3,3.4]
[1766649771232,4.26132862,2942.6,2941.3,4.43123065]
[1766649773226,4.27252196,2942.6,2941.3,4.43525774]
[1766649774329,3.399,2942.6,2941.3,3.4]
[1766649774534,4.2732502,2942.6,2941.3,4.46117971]
[1766649775233,4.2732502,2942.6,2941.3,3.4]
[1766649775234,3.399,2942.6,2941.3,3.4]
[1766649776937,4.27108537,2942.6,2941.3,4.43551641]
[1766649777339,3.399,2942.6,2941.3,3.4]
[1766649778539,4.25226867,2942.6,2941.3,4.42365108]
[1766649778833,3.399,2942.6,2941.3,3.4]
[1766649779036,4.25506108,2942.6,2941.3,4.46388657]
[1766649780238,4.25258678,2942.6,2941.3,4.45656643]
[1766649780633,4.25258678,2942.6,2941.3,1.05656643]